bitfinex-derivatives/quotes_SOLF0:USTF0_20250823
["timestamp","ask_amount","ask_price","bid_price","bid_amount"]
[1755959411536,2.74,202.97,202.94,6.12534828]
[1755959411733,2.74,202.97,202.93,2.61]
[1755959411931,4.9286,202.97,202.94,6.12603757]
[1755959412133,2.74,202.96,202.9,2.61]
[1755959412333,2.74,202.96,202.91,12.95190514]
[1755959412534,7.6691,202.95,202.92,10.34158428]
[1755959412724,7.6691,202.95,202.93,6.12407851]
[1755959412929,7.6691,202.95,202.91,2.61]
[1755959413234,2.74,202.95,202.92,10.33989673]
[1755959413434,2.74,202.95,202.93,6.1233397]
[1755959413635,2.74,202.95,202.94,6.1233397]
[1755959414140,106.9281,202.99,202.94,6.1233397]
[1755959414343,2.74,202.98,202.9,2.61]
[1755959414631,2.74,202.98,202.91,10.33365494]
[1755959414825,2.74,202.98,202.92,10.33362245]
[1755959415028,2.74,202.98,202.93,6.12002277]
[1755959415228,2.74,202.98,202.9,2.61]
[1755959415433,4.9286,202.97,202.91,10.32923258]
[1755959415735,2.74,202.98,202.92,6.11735338]
[1755959415932,102.0,202.99,202.93,6.11735338]
[1755959416133,2.74,202.96,202.9,2.61]
[1755959416337,7.6689,202.96,202.92,2.61]
[1755959416536,7.6689,202.96,202.93,6.11854616]
[1755959416733,102.0,202.99,202.94,1.64616233]
[1755959416937,2.74,202.98,202.91,2.61]
[1755959417132,2.74,202.98,202.92,10.32993989]
[1755959417332,2.74,202.97,202.93,8.72758498]
[1755959417535,2.74,202.97,202.93,2.61]
[1755959417736,2.74,202.96,202.93,2.61]
[1755959419036,4.9288,202.96,202.89,2.61]
[1755959419236,4.9288,202.96,202.9,10.32814518]
[1755959419433,2.74,202.95,202.91,10.32814518]
[1755959419634,2.74,202.95,202.92,10.32814518]
[1755959419833,2.74,202.95,202.93,6.11642408]
[1755959420037,2.74,202.95,202.89,4.9302]
[1755959420338,2.74,202.95,202.91,2.61]
[1755959420538,2.74,202.95,202.92,6.1176232]
[1755959420737,2.74,202.95,202.9,2.61]
[1755959420936,2.74,202.95,202.91,12.94083187]
[1755959421238,2.74,202.95,202.92,6.11820235]
[1755959421434,2.74,202.95,202.91,2.61]
[1755959421637,4.9283,202.98,202.92,10.32878686]
[1755959421834,7.6683,202.98,202.93,1.64606656]
[1755959422041,4.9283,202.98,202.93,2.61]
[1755959422237,2.74,202.97,202.93,2.61]
[1755959422435,2.74,202.96,202.93,2.61]
[1755959425040,4.9286,202.97,202.93,2.61]
[1755959425241,7.6686,202.97,202.93,2.61]
[1755959427041,2.74,202.96,202.88,2.61]
[1755959427340,2.74,202.96,202.89,10.32553876]
[1755959427535,2.74,202.96,202.9,10.32553876]
[1755959427736,4.9296,202.93,202.88,2.61]
[1755959427942,2.74,202.92,202.89,10.32672253]
[1755959428142,2.74,202.92,202.88,2.61]
[1755959428346,7.6698,202.92,202.89,6.11684609]
[1755959428547,7.6698,202.92,202.88,2.61]
[1755959428738,7.6698,202.92,202.89,10.32969929]
[1755959428945,7.6698,202.92,202.87,4.9308]
[1755959429240,4.9298,202.92,202.89,2.61]
[1755959429446,7.6693,202.94,202.9,8.72760516]
[1755959429745,7.6693,202.94,202.91,6.11760516]
[1755959429951,7.6693,202.94,202.92,6.11760516]
[1755959430243,7.6693,202.94,202.93,6.11126239]
[1755959430646,7.6693,202.94,202.93,1.644471]
[1755959430940,7.6693,202.94,202.93,6.11090851]
[1755959432541,7.6693,202.94,202.9,2.61]
[1755959432840,7.6693,202.94,202.91,1.64744888]
[1755959433040,7.6693,202.94,202.92,1.64729531]
[1755959433241,2.74,202.93,202.9,2.61]
[1755959433442,2.74,202.93,202.91,6.12128991]
[1755959433748,2.74,202.93,202.92,6.12128419]
[1755959433948,2.74,202.93,202.92,1.64731651]
[1755959434842,7.6696,202.93,202.87,7.5109]
[1755959435042,102.0,202.92,202.88,6.12066333]
[1755959435342,2.8,202.9,202.83,2.58]
[1755959435538,4.9305,202.89,202.84,10.33488862]
[1755959435743,2.8,202.88,202.85,12.91488862]
[1755959435939,2.8,202.88,202.86,6.1211039]
[1755959436149,2.8,202.88,202.87,6.1211039]
[1755959437644,2.8,202.88,202.85,2.58]
[1755959437645,7.7308,202.88,202.78,4.06380575]
[1755959437851,7.7308,202.88,202.81,2.58]
[1755959438050,7.7308,202.88,202.82,10.28005926]
[1755959438250,7.7308,202.88,202.83,6.11869855]
[1755959438556,2.8,202.87,202.84,8.69869855]
[1755959438851,2.8,202.87,202.84,2.58]
[1755959440150,7.7308,202.88,202.84,2.58]
[1755959440350,2.8,202.87,202.84,2.58]
[1755959441258,102.0,202.91,202.85,2.58]
[1755959441751,106.93,202.91,202.85,7.5113]
[1755959441952,106.93,202.91,202.86,1.64546683]
[1755959442159,106.93,202.91,202.87,2.58]
[1755959442160,109.73,202.91,202.87,2.58]
[1755959442559,2.8,202.9,202.87,2.58]
[1755959443751,102.0,202.91,202.86,4.931]
[1755959443952,102.0,202.91,202.89,2.58]
[1755959444151,102.0,202.91,202.9,2.58]
[1755959444459,102.0,202.91,202.83,2.58]
[1755959444652,102.0,202.91,202.85,2.58]
[1755959444955,102.0,202.91,202.86,6.1141622]
[1755959445153,102.0,202.91,202.88,2.58]
[1755959445752,2.8,202.9,202.86,2.58]
[1755959445956,102.0,202.91,202.82,2.58]
[1755959446156,2.8,202.88,202.84,2.58]
[1755959446356,2.8,202.87,202.85,6.11745518]
[1755959446556,2.8,202.89,202.8,125.24]
[1755959446858,2.8,202.89,202.81,10.28844201]
[1755959447051,2.8,202.89,202.82,10.28844201]
[1755959447253,2.8,202.89,202.8,125.24]
[1755959447254,2.8,202.89,202.83,10.28844201]
[1755959447555,109.95643722,202.9,202.8,125.24]
[1755959447556,4.931,202.87,202.84,1.64823287]
[1755959447758,4.931,202.87,202.81,4.9323]
[1755959447951,4.931,202.87,202.82,10.29134972]
[1755959448258,4.931,202.87,202.83,8.70300742]
[1755959448458,2.8,202.88,202.84,6.12300742]
[1755959448654,2.8,202.88,202.83,2.58]
[1755959448847,2.8,202.88,202.84,6.12251892]
[1755959449049,2.8,202.88,202.85,1.64879592]
[1755959449260,109.95643722,202.9,202.83,2.58]
[1755959449554,102.0,202.9,202.85,2.58]
[1755959449756,102.0,202.9,202.8,4.06380575]
[1755959449757,102.0,202.9,202.86,6.12316508]
[1755959449961,102.0,202.9,202.88,2.58]
[1755959450655,102.0,202.9,202.86,4.931]
[1755959450848,102.0,202.9,202.87,8.70355713]
[1755959451053,102.0,202.9,202.87,2.58]
[1755959453659,104.8,202.9,202.87,2.58]
[1755959454062,104.8,202.9,202.84,4.9315]
[1755959454361,2.8,202.89,202.85,10.30187761]
[1755959454562,2.8,202.89,202.86,10.30187761]
[1755959454763,2.8,202.89,202.87,6.12844399]
[1755959454958,2.8,202.89,202.84,4.9315]
[1755959455160,2.8,202.89,202.85,10.30273091]
[1755959455363,2.8,202.89,202.86,10.30273091]
[1755959455560,2.8,202.89,202.87,6.12896084]
[1755959455762,2.8,202.89,202.84,4.9315]
[1755959455961,2.8,202.89,202.85,10.30249111]
[1755959456163,2.8,202.89,202.86,10.30249111]
[1755959456362,2.8,202.88,202.87,6.12877911]
[1755959456661,2.8,202.88,202.8,122.6]
[1755959456869,2.8,202.88,202.81,10.31110357]
[1755959457165,2.8,202.88,202.82,10.31110357]
[1755959457362,2.8,202.89,202.83,10.31110357]
[1755959457559,2.8,202.87,202.84,10.31110357]
[1755959457765,2.8,202.86,202.8,122.6]
[1755959457960,109.95643722,202.9,202.81,10.31132348]
[1755959458165,2.8,202.85,202.82,10.31090602]
[1755959458461,2.8,202.85,202.83,6.13361101]
[1755959458667,4.9307,202.88,202.8,122.6]
[1755959458864,2.8,202.89,202.81,10.31029121]
[1755959459065,2.8,202.89,202.82,10.31029121]
[1755959459265,2.8,202.89,202.83,6.1334126]
[1755959459460,2.8,202.89,202.8,122.6]
[1755959459661,2.8,202.89,202.81,10.30935723]
[1755959459965,2.8,202.89,202.82,10.30935723]
[1755959460161,4.9311,202.87,202.83,6.13276993]
[1755959460366,109.95643722,202.9,202.86,2.58]
[1755959460367,102.0,202.9,202.86,2.58]
[1755959460669,102.0,202.9,202.88,2.58]
[1755959460864,2.8,202.89,202.83,2.58]
[1755959461171,2.8,202.89,202.85,2.58]
[1755959461472,2.8,202.92,202.86,10.30389421]
[1755959461669,4.9301,202.91,202.87,6.12937204]
[1755959461855,2.8,202.91,202.85,2.58]
[1755959462060,2.8,202.93,202.86,6.12741762]
[1755959462366,2.8,202.93,202.85,2.58]
[1755959462667,7.95643722,202.89,202.8,2.58]
[1755959462963,4.9315,202.85,202.81,10.30909201]
[1755959463165,2.8,202.88,202.82,10.30909201]
[1755959463363,2.74,202.87,202.83,6.1322695]
[1755959463562,2.74,202.9,202.79,2.81]
[1755959463761,2.74,202.9,202.81,2.81]
[1755959463958,2.74,202.9,202.82,10.3095799]
[1755959464157,2.74,202.9,202.83,10.3095799]
[1755959464360,2.74,202.9,202.84,6.13266809]
[1755959464557,4.931,202.87,202.81,7.7422]
[1755959464761,7.671,202.87,202.83,2.81]
[1755959465069,7.671,202.87,202.84,6.13298412]
[1755959465370,7.671,202.87,202.83,2.81]
[1755959465563,4.931,202.87,202.84,6.13269701]
[1755959465768,2.74,202.86,202.82,2.81]
[1755959465970,2.74,202.86,202.83,13.12013719]
[1755959466158,2.74,202.86,202.84,6.13269701]
[1755959466360,2.74,202.86,202.84,1.65129313]
[1755959466563,2.74,202.86,202.83,2.81]
[1755959466865,2.74,202.92,202.85,2.81]
[1755959467071,2.74,202.92,202.86,10.30824283]
[1755959467369,2.74,202.92,202.89,2.81]
[1755959467671,4.9296,202.93,202.9,2.81]
[1755959468060,2.74,203.0,202.9,2.81]
[1755959468264,2.74,203.0,202.91,6.12923118]
[1755959468473,2.74,203.0,202.9,2.81]
[1755959468664,2.74,203.0,202.91,6.12940466]
[1755959468869,2.74,203.0,202.92,2.81]
[1755959469766,2.74,203.0,202.93,10.2974185]
[1755959469964,2.74,203.03,202.92,2.81]
[1755959470164,2.74,203.03,202.94,2.81]
[1755959470770,7.95643722,203.06,202.95,10.29944504]
[1755959470771,24.6331,203.05,202.95,10.29944504]
[1755959471077,2.74,203.04,202.94,2.81]
[1755959471371,2.74,203.04,202.95,6.13044847]
[1755959471576,4.9279,203.0,202.93,4.9292]
[1755959471778,2.74,203.05,202.95,2.81]
[1755959472268,4.9268,203.04,202.95,2.81]
[1755959472463,122.54,203.06,202.97,2.81]
[1755959472670,122.54,203.06,202.98,6.12821372]
[1755959472859,122.54,203.06,202.97,2.81]
[1755959473065,7.6659,203.08,202.99,2.81]
[1755959473671,7.6659,203.08,203.0,6.12121082]
[1755959473872,130.1853,203.11,203.02,2.81]
[1755959474577,130.1853,203.11,203.03,6.11305653]
[1755959474876,130.1853,203.11,203.02,7.7371]
[1755959475070,130.1853,203.11,203.03,6.11385105]
[1755959475267,54.50095026,203.13,203.05,4.9265]
[1755959475575,54.50095026,203.13,203.06,2.81]
[1755959475970,57.24095026,203.13,203.06,2.81]
[1755959476374,4.925,203.12,203.06,2.81]
[1755959476582,4.925,203.12,203.01,2.81]
[1755959476583,2.74,203.12,203.01,2.81]
[1755959476779,2.74,203.12,203.03,2.81]
[1755959477085,2.74,203.12,203.04,1.64156791]
[1755959477384,4.9256,203.09,203.03,2.81]
[1755959478081,7.665,203.12,203.03,2.81]
[1755959479080,4.9253,203.11,203.03,2.81]
[1755959479580,104.74,203.12,203.03,2.81]
[1755959481279,109.665,203.12,203.03,7.7368]
[1755959481674,102.0,203.12,203.04,2.81]
[1755959482081,102.0,203.12,203.05,4.9265]
[1755959485489,104.74,203.12,203.05,4.9265]
[1755959485882,104.74,203.12,203.06,4.9261]
[1755959486085,104.74,203.12,203.04,2.81]
[1755959486584,104.74,203.12,203.07,4.9259]
[1755959486778,102.0,203.12,203.01,24.6376]
[1755959487080,102.0,203.12,203.02,33.52481474]
[1755959487081,104.74,203.12,203.02,33.52481474]
[1755959487281,104.74,203.12,203.03,7.25264479]
[1755959487481,104.74,203.12,203.08,4.9256]
[1755959487687,104.74,203.12,203.05,2.81]
[1755959487887,2.74,203.16,203.05,2.81]
[1755959488487,2.74,203.16,203.13,2.81]
[1755959488789,2.74,203.22,203.11,2.81]
[1755959489892,2.74,203.22,203.15,4.9239]
[1755959490489,2.74,203.22,203.13,4.9245]
[1755959491385,4.9227,203.21,203.13,4.9245]
[1755959491590,2.74,203.2,203.13,4.9245]
[1755959491791,2.74,203.2,203.11,2.81]
[1755959491792,2.74,203.2,203.16,2.81]
[1755959492384,2.74,203.23,203.17,2.81]
[1755959492589,7.6623,203.23,203.15,4.9241]
[1755959493287,7.6623,203.23,203.15,7.7341]
[1755959493490,7.6623,203.23,203.16,4.9237]
[1755959494592,2.74,203.23,203.16,4.9237]
[1755959495992,24.6026,203.3,203.15,2.81]
[1755959495993,2.67,203.28,203.2,4.9227]
[1755959497592,24.6002,203.32,203.14,2.72]
[1755959497593,2.67,203.25,203.14,2.72]
[1755959498295,4.9221,203.24,203.16,4.9238]
[1755959498896,2.67,203.23,203.14,2.72]
[1755959499600,7.5923,203.23,203.14,2.72]
[1755959500204,2.67,203.23,203.14,2.72]
[1755959500600,2.67,203.23,203.17,4.9234]
[1755959500799,2.67,203.23,203.11,2.72]
[1755959501004,2.67,203.21,203.11,2.72]
[1755959501501,7.5928,203.21,203.14,4.9242]
[1755959501701,2.67,203.21,203.11,2.72]
[1755959501900,2.67,203.21,203.13,2.72]
[1755959502102,146.8784,203.34,203.13,2.72]
[1755959502103,2.67,203.35,203.14,246.2101]
[1755959502302,2.67,203.4,203.28,2.72]
[1755959502496,2.67,203.4,203.27,7.95643722]
[1755959502497,2.67,203.4,203.3,2.72]
[1755959504100,10.62643722,203.4,203.3,2.72]
[1755959504301,10.62643722,203.4,203.25,2.72]
[1755959504302,2.67,203.37,203.25,2.72]
[1755959504499,2.67,203.37,203.26,8.51544252]
[1755959504698,2.67,203.37,203.27,8.51544252]
[1755959504903,2.67,203.37,203.28,4.09758682]
[1755959505204,2.67,203.37,203.29,4.09679046]
[1755959505406,2.67,203.37,203.28,2.72]
[1755959505606,2.67,203.37,203.29,4.09441383]
[1755959505804,2.67,203.37,203.28,2.72]
[1755959506009,2.67,203.37,203.29,4.09441103]
[1755959506208,2.67,203.37,203.28,2.72]
[1755959506408,2.67,203.37,203.29,4.09266327]
[1755959506605,2.67,203.37,203.29,4.9205]
[1755959507404,2.67,203.39,203.24,2.72]
[1755959507609,2.67,203.38,203.25,4.09740712]
[1755959507806,2.67,203.38,203.17,28.68110575]
[1755959508009,2.67,203.34,203.19,2.72]
[1755959508204,4.9212,203.27,203.2,8.52054375]
[1755959508510,4.9212,203.27,203.21,4.10007289]
[1755959508708,4.9212,203.27,203.19,2.72]
[1755959508909,4.9212,203.27,203.2,4.10505912]
[1755959509108,4.9212,203.27,203.21,4.10505912]
[1755959509308,2.67,203.3,203.19,2.72]
[1755959509508,24.604,203.29,203.2,4.10813525]
[1755959509711,2.67,203.28,203.15,7.6439]
[1755959509903,2.67,203.28,203.16,10.16444984]
[1755959510104,2.67,203.28,203.17,10.16444984]
[1755959510303,2.67,203.28,203.18,8.53956107]
[1755959510499,2.67,203.28,203.19,4.10906206]
[1755959510500,4.9218,203.25,203.19,4.10906206]
[1755959510705,2.67,203.23,203.2,4.10906206]
[1755959510906,2.67,203.23,203.15,7.6439]
[1755959511101,2.67,203.23,203.16,10.17402509]
[1755959511312,2.67,203.23,203.17,8.54760162]
[1755959511513,2.67,203.23,203.18,8.55197594]
[1755959511811,2.67,203.23,203.19,4.11294162]
[1755959512007,2.67,203.24,203.2,4.11294162]
[1755959512200,2.67,203.24,203.15,7.6439]
[1755959512407,2.67,203.24,203.16,8.56329213]
[1755959512612,7.5921,203.24,203.17,8.56329213]
[1755959512911,7.5921,203.24,203.18,4.12052857]
[1755959513106,2.67,203.23,203.19,4.12052857]
[1755959513306,2.67,203.23,203.2,4.12052857]
[1755959513506,2.67,203.23,203.15,7.6439]
[1755959513806,2.67,203.23,203.16,10.20276302]
[1755959514111,2.67,203.23,203.17,8.57177067]
[1755959514305,2.67,203.23,203.15,7.6439]
[1755959514306,2.67,203.23,203.19,2.72]
[1755959514611,2.67,203.23,203.2,4.12463004]
[1755959514809,79.9463,203.28,203.22,2.72]
[1755959515012,79.9463,203.28,203.23,4.12463004]
[1755959515209,82.6163,203.28,203.24,4.12463004]
[1755959515410,2.67,203.27,203.23,2.72]
[1755959515712,2.67,203.27,203.24,4.12867696]
[1755959515913,2.67,203.27,203.19,2.72]
[1755959516208,2.67,203.27,203.2,10.21320227]
[1755959516511,84.8674,203.28,203.21,8.580635]
[1755959516716,84.8674,203.28,203.22,8.58305368]
[1755959516909,87.5374,203.28,203.23,4.12890487]
[1755959517212,87.5374,203.28,203.24,4.12890487]
[1755959517412,87.5374,203.28,203.25,4.12890487]
[1755959517712,82.6163,203.28,203.2,4.9227]
[1755959517913,82.6163,203.28,203.21,10.22693626]
[1755959518107,82.6163,203.28,203.22,8.59219353]
[1755959518307,79.9463,203.28,203.24,2.72]
[1755959518609,79.9463,203.28,203.25,4.13458509]
[1755959518807,82.6163,203.28,203.26,4.13676905]
[1755959519014,79.9463,203.28,203.21,4.9225]
[1755959519208,79.9463,203.28,203.22,8.5984251]
[1755959519407,2.67,203.27,203.23,4.13690478]
[1755959519608,79.9463,203.28,203.24,4.13690478]
[1755959519806,79.9463,203.28,203.25,4.13690478]
[1755959520007,2.67,203.31,203.26,6.85690478]
[1755959520213,2.67,203.31,203.27,4.13690478]
[1755959520409,2.67,203.31,203.28,4.13690478]
[1755959520609,2.67,203.31,203.26,2.72]
[1755959520610,2.67,203.3,203.26,2.72]
[1755959520810,2.67,203.34,203.27,4.13801733]
[1755959521010,2.67,203.34,203.28,4.13801733]
[1755959521214,4.9211,203.28,203.2,4.06380575]
[1755959521506,24.5955,203.36,203.19,4.9229]
[1755959521507,2.67,203.27,203.21,8.60923338]
[1755959521707,24.5993,203.33,203.22,4.14238404]
[1755959521911,2.67,203.25,203.23,4.14238404]
[1755959522116,2.67,203.25,203.24,4.14238404]
[1755959522911,82.6163,203.32,203.24,4.14238404]
[1755959523112,82.6163,203.32,203.25,4.14238404]
[1755959523312,82.6163,203.32,203.26,4.14238404]
[1755959523513,4.9209,203.29,203.22,2.72]
[1755959523720,4.9209,203.29,203.23,8.61687724]
[1755959524013,2.79,203.28,203.24,4.14645229]
[1755959524215,2.79,203.31,203.19,4.9231]
[1755959524417,2.79,203.31,203.2,10.26064612]
[1755959524615,2.79,203.31,203.21,10.26064612]
[1755959524816,2.79,203.25,203.22,8.62053451]
[1755959525015,2.79,203.25,203.23,4.14831005]
[1755959525215,2.79,203.25,203.24,4.14831005]
[1755959525418,4.9219,203.24,203.18,2.63]
[1755959525618,2.79,203.23,203.19,10.26294326]
[1755959525914,2.79,203.23,203.2,8.62242879]
[1755959526220,2.79,203.23,203.21,4.14919693]
[1755959526419,2.79,203.23,203.18,2.63]
[1755959526721,4.9215,203.26,203.2,2.63]
[1755959526918,4.9215,203.26,203.21,8.62850093]
[1755959526919,2.79,203.25,203.21,8.62850093]
[1755959527120,2.79,203.25,203.22,4.15152231]
[1755959527322,2.79,203.25,203.2,2.63]
[1755959527519,2.79,203.25,203.21,8.63125323]
[1755959527721,2.79,203.25,203.2,2.63]
[1755959528019,2.79,203.24,203.21,4.153512]
[1755959528219,2.79,203.24,203.16,7.5538]
[1755959528420,2.79,203.24,203.17,10.27871987]
[1755959528617,7.7121,203.24,203.18,10.27871987]
[1755959528828,2.79,203.23,203.19,12.90871987]
[1755959529121,2.79,203.23,203.2,8.63575142]
[1755959529420,79.9463,203.22,203.15,2.63]
[1755959529620,79.9463,203.22,203.16,10.28526325]
[1755959529818,79.9463,203.22,203.17,10.28526325]
[1755959529819,4.9233,203.19,203.17,10.28526325]
[1755959530020,2.79,203.18,203.11,2.63]
[1755959530231,2.79,203.18,203.12,10.29276315]
[1755959530414,2.79,203.17,203.1,78.7625497]
[1755959530619,2.79,203.17,203.11,6.13066533]
[1755959530821,2.79,203.17,203.06,2.63]
[1755959531025,2.79,203.17,203.07,10.29638733]
[1755959531324,2.79,203.17,203.08,10.2965683]
[1755959531519,2.79,203.17,203.09,10.2965683]
[1755959531719,2.79,203.17,203.1,6.13247025]
[1755959531919,2.79,203.17,203.06,2.63]
[1755959532116,2.79,203.17,203.07,10.29748413]
[1755959532318,2.79,203.17,203.08,6.1329411]
[1755959532518,2.79,203.17,203.01,2.63]
[1755959532729,2.79,203.17,203.02,10.30239961]
[1755959532918,12.57583958,203.17,203.03,10.30239961]
[1755959533117,4.9252,203.11,203.04,10.30239961]
[1755959533325,4.9252,203.11,203.05,10.30239961]
[1755959533524,2.79,203.1,203.06,6.13607642]
[1755959533724,2.79,203.1,203.07,6.13607642]
[1755959533925,2.79,203.1,203.01,2.63]
[1755959534130,2.79,203.1,203.02,10.30359387]
[1755959534432,4.9252,203.11,202.99,359.54380575]
[1755959534433,4.9252,203.11,203.04,2.63]
[1755959534731,4.9252,203.11,203.05,10.30359387]
[1755959534928,7.7152,203.11,203.06,6.13681258]
[1755959535127,2.79,203.1,203.04,2.63]
[1755959535326,2.79,203.1,202.99,355.48]
[1755959535327,2.79,203.1,203.05,8.76247638]
[1755959535528,4.9256,203.09,203.06,4.48575177]
[1755959535732,2.79,203.08,203.01,2.63]
[1755959535926,2.79,203.12,203.02,10.30011606]
[1755959536130,2.79,203.12,203.01,2.63]
[1755959536131,2.79,203.12,203.03,6.13484326]
[1755959536328,2.79,203.12,203.04,6.13484326]
[1755959536533,2.79,203.12,203.01,2.63]
[1755959536733,2.79,203.12,203.02,10.29459615]
[1755959536933,2.79,203.12,203.03,6.13158714]
[1755959537230,2.79,203.12,203.01,2.63]
[1755959537532,4.9251,203.11,203.02,11.0541588]
[1755959537732,4.9251,203.11,203.03,6.1270588]
[1755959537934,4.9251,203.11,203.02,4.9271]
[1755959538132,4.9251,203.11,203.03,6.12649274]
[1755959538335,4.9251,203.11,203.02,4.9271]
[1755959538633,4.9251,203.11,203.03,6.12304357]
[1755959538935,4.9251,203.11,203.02,4.9271]
[1755959539134,4.9251,203.11,203.03,6.12397894]
[1755959539337,2.79,203.12,203.05,4.9264]
[1755959540830,79.9463,203.11,203.03,2.63]
[1755959541036,84.8716,203.11,203.03,7.5569]
[1755959541936,79.9463,203.11,203.04,4.9266]
[1755959542238,79.9463,203.11,203.04,4.9267]
[1755959543732,4.9261,203.07,202.96,2.63]
[1755959544028,7.7161,203.07,202.98,2.63]
[1755959544440,2.79,203.07,202.98,2.63]
[1755959545837,4.9272,203.03,202.98,2.63]
[1755959546037,24.6296,203.08,202.92,2.63]
[1755959546038,125.71,203.07,202.92,2.63]
[1755959546240,2.79,203.06,202.93,10.25785663]
[1755959546539,2.79,203.05,202.92,2.63]
[1755959547139,4.9279,203.0,202.93,4.9293]
[1755959548640,4.9279,203.0,202.94,4.929]
[1755959550134,84.8731,203.04,202.96,2.63]
[1755959550340,2.79,203.03,202.96,2.63]
[1755959551443,79.9463,203.04,202.96,2.63]
[1755959552443,79.9463,203.04,202.97,8.59634186]
[1755959552645,79.9463,203.04,202.98,12.86265484]
[1755959552836,2.79,203.06,202.98,2.63]
[1755959553035,2.79,203.06,202.99,4.1373414]
[1755959553240,2.79,203.06,202.98,2.63]
[1755959553445,2.79,203.06,202.99,8.59919508]
[1755959553648,2.79,203.06,203.0,4.9276]
[1755959553841,2.79,203.06,202.98,2.63]
[1755959554042,2.62,203.1,203.0,2.66]
[1755959554241,2.62,203.1,203.01,4.13977384]
[1755959554446,2.62,203.1,203.03,2.66]
[1755959555456,84.8709,203.13,203.05,7.5863]
[1755959558861,4.925,203.12,203.05,7.5863]
[1755959559558,79.9463,203.13,203.06,4.9261]
[1755959560558,84.871,203.13,203.06,4.9261]
[1755959561156,84.871,203.13,203.0,2.66]
[1755959561157,2.62,203.12,203.0,2.66]
[1755959561356,2.62,203.1,203.01,10.25582908]
[1755959561557,2.62,203.1,203.02,8.61564545]
[1755959561762,4.9259,203.08,203.01,4.9274]
[1755959562064,4.9259,203.08,203.02,4.14641605]
[1755959562263,4.9259,203.08,203.0,2.66]
[1755959562465,4.9259,203.08,203.01,10.25938058]
[1755959562658,2.62,203.09,203.0,2.66]
[1755959562860,2.62,203.09,203.01,10.26161187]
[1755959562861,79.9463,203.08,203.01,10.26161187]
[1755959563156,79.9463,203.08,203.02,12.92147832]
[1755959563358,79.9463,203.08,203.04,2.66]
[1755959563558,79.9463,203.08,202.99,2.66]
[1755959563860,79.9463,203.08,203.04,4.9266]
[1755959564059,79.9463,203.08,203.04,7.5866]
[1755959565056,82.5663,203.08,203.04,7.5866]
[1755959567461,2.62,203.08,203.04,7.5866]
[1755959568467,2.62,203.08,203.05,4.9264]
[1755959569765,2.62,203.11,203.05,7.5864]
[1755959569961,2.62,203.11,203.05,4.9264]
[1755959572266,4.925,203.12,203.06,6.14878288]
[1755959572569,4.925,203.12,203.05,4.9264]
[1755959572570,2.62,203.11,203.05,4.9264]
[1755959572767,2.62,203.11,203.06,10.32714818]
[1755959572963,2.62,203.11,203.03,2.66]
[1755959573163,2.62,203.11,203.04,10.32714554]
[1755959573467,2.62,203.11,203.05,10.32714554]
[1755959573669,2.62,203.1,203.06,10.32714554]